[Event "Early-Titled-Tuesday-Blitz-March-19-2024"]
[Site "Chess.com"]
[Date "2024.03.19"]
[Round "4"]
[White "Defend1r"]
[Black "KhazhatulyAlikhan"]
[Result "1-0"]
[WhiteElo "2732"]
[BlackElo "2459"]
[TimeControl "180+1"]
[EndTime "8:39:01 PDT"]
[Termination "Defend1r won on time"]

1. e4 {[%clk 0:03:00.9]} 1... c5 {[%clk 0:02:59.3]} 2. Nf3 {[%clk 0:03:01.1]}
2... e6 {[%clk 0:02:59.1]} 3. c3 {[%clk 0:03:01.3]} 3... Nf6 {[%clk 0:02:59]} 4.
e5 {[%clk 0:03:01.3]} 4... Nd5 {[%clk 0:02:59.7]} 5. d4 {[%clk 0:03:01.5]} 5...
cxd4 {[%clk 0:03:00.5]} 6. cxd4 {[%clk 0:03:01.7]} 6... d6 {[%clk 0:03:01.4]} 7.
Bc4 {[%clk 0:03:01.9]} 7... Nc6 {[%clk 0:02:59.7]} 8. Qe2 {[%clk 0:03:02]} 8...
Be7 {[%clk 0:02:42.6]} 9. O-O {[%clk 0:03:01.9]} 9... O-O {[%clk 0:02:42.4]} 10.
Rd1 {[%clk 0:03:02.5]} 10... a6 {[%clk 0:02:37.3]} 11. Nbd2 {[%clk 0:03:01.3]}
11... b5 {[%clk 0:02:37.4]} 12. Bd3 {[%clk 0:03:01.2]} 12... Bb7 {[%clk
0:02:34.8]} 13. Ne4 {[%clk 0:03:01.6]} 13... h6 {[%clk 0:01:40.7]} 14. Ng3
{[%clk 0:02:59.9]} 14... Qd7 {[%clk 0:01:25.7]} 15. Bxh6 {[%clk 0:02:59]} 15...
gxh6 {[%clk 0:01:16.6]} 16. Qe4 {[%clk 0:02:59.2]} 16... f5 {[%clk 0:01:08.8]}
17. exf6 {[%clk 0:02:59.6]} 17... Bxf6 {[%clk 0:01:01.5]} 18. Nh5 {[%clk
0:03:00]} 18... Qf7 {[%clk 0:00:49.8]} 19. Qg4+ {[%clk 0:02:45.8]} 19... Bg7
{[%clk 0:00:37.8]} 20. Bg6 {[%clk 0:02:42.8]} 20... Qe7 {[%clk 0:00:33.5]} 21.
Re1 {[%clk 0:02:40.8]} 21... Nf6 {[%clk 0:00:29]} 22. Qh3 {[%clk 0:02:28.4]}
22... Nxh5 {[%clk 0:00:25.8]} 23. Qxh5 {[%clk 0:02:19.9]} 23... Rxf3 {[%clk
0:00:20.2]} 24. Qxf3 {[%clk 0:02:11.3]} 24... Nxd4 {[%clk 0:00:20.7]} 25. Qd3
{[%clk 0:02:01.1]} 25... Qg5 {[%clk 0:00:16.1]} 26. Be4 {[%clk 0:01:57.7]} 26...
d5 {[%clk 0:00:16.6]} 27. Bh7+ {[%clk 0:01:57.9]} 27... Kh8 {[%clk 0:00:17.1]}
28. Rac1 {[%clk 0:01:58.4]} 28... Rc8 {[%clk 0:00:13]} 29. Rxc8+ {[%clk
0:01:52.9]} 29... Bxc8 {[%clk 0:00:13.9]} 30. h4 {[%clk 0:01:44.4]} 30... Qd8
{[%clk 0:00:04.7]} 31. Bg6 {[%clk 0:01:41.8]} 31... e5 {[%clk 0:00:04.9]} 32.
Rc1 {[%clk 0:01:39.2]} 32... e4 {[%clk 0:00:03.1]} 33. Qd2 {[%clk 0:01:34.6]}
33... Bf5 {[%clk 0:00:03.3]} 34. Bh5 {[%clk 0:01:29.5]} 34... Qf8 {[%clk
0:00:02.1]} 35. Rc7 {[%clk 0:01:24.7]} 35... Qb8 {[%clk 0:00:01.7]} 36. Rxg7
{[%clk 0:01:22.3]} 36... Kxg7 {[%clk 0:00:01.4]} 37. Qxd4+ {[%clk 0:01:22.6]}
37... Kh7 {[%clk 0:00:01.3]} 38. Qxd5 {[%clk 0:01:22.7]} 38... Qf8 {[%clk
0:00:01.1]} 39. Qe5 {[%clk 0:01:21.7]} 1-0

[Event "Early-Titled-Tuesday-Blitz-March-19-2024"]
[Site "Chess.com"]
[Date "2024.03.19"]
[Round "4"]
[White "Lovetov"]
[Black "AsselLesbekova"]
[Result "1-0"]
[WhiteElo "2550"]
[BlackElo "2294"]
[TimeControl "180+1"]
[EndTime "8:39:05 PDT"]
[Termination "Lovetov won by checkmate"]

1. Nf3 {[%clk 0:02:58.4]} 1... Nf6 {[%clk 0:02:59]} 2. g3 {[%clk 0:02:26.2]}
2... d5 {[%clk 0:02:59.4]} 3. Bg2 {[%clk 0:02:26.9]} 3... c5 {[%clk 0:02:58.9]}
4. O-O {[%clk 0:02:27.8]} 4... Nc6 {[%clk 0:02:59.4]} 5. d4 {[%clk 0:02:28.2]}
5... cxd4 {[%clk 0:02:58.1]} 6. Nxd4 {[%clk 0:02:29.1]} 6... e6 {[%clk
0:02:58.5]} 7. c4 {[%clk 0:02:28.6]} 7... Bc5 {[%clk 0:02:52.7]} 8. Nb3 {[%clk
0:02:22.1]} 8... Be7 {[%clk 0:02:50.5]} 9. cxd5 {[%clk 0:02:20.2]} 9... Nxd5
{[%clk 0:02:48.3]} 10. N1d2 {[%clk 0:01:55.9]} 10... O-O {[%clk 0:02:45.7]} 11.
Nc4 {[%clk 0:01:55.6]} 11... Nf6 {[%clk 0:02:31.9]} 12. Bf4 {[%clk 0:01:28.8]}
12... Nd5 {[%clk 0:02:12.9]} 13. Bd2 {[%clk 0:01:29.3]} 13... b5 {[%clk
0:02:10.9]} 14. Ne3 {[%clk 0:01:26.6]} 14... Nxe3 {[%clk 0:02:05.3]} 15. Bxe3
{[%clk 0:01:27.5]} 15... Bb7 {[%clk 0:02:05.8]} 16. Nc5 {[%clk 0:01:26.1]} 16...
Bxc5 {[%clk 0:01:59.1]} 17. Bxc5 {[%clk 0:01:27]} 17... Qxd1 {[%clk 0:01:57.8]}
18. Rfxd1 {[%clk 0:01:26.6]} 18... Rfd8 {[%clk 0:01:58.3]} 19. f4 {[%clk
0:01:17.2]} 19... f6 {[%clk 0:01:55.4]} 20. Kf2 {[%clk 0:01:16.8]} 20... Kf7
{[%clk 0:01:55.2]} 21. Rac1 {[%clk 0:01:13.9]} 21... Na5 {[%clk 0:01:45.9]} 22.
Rxd8 {[%clk 0:01:05.6]} 22... Rxd8 {[%clk 0:01:44.7]} 23. Bxb7 {[%clk
0:01:05.8]} 23... Nxb7 {[%clk 0:01:41.7]} 24. Bxa7 {[%clk 0:01:06.4]} 24... Rd7
{[%clk 0:01:38.3]} 25. Bb6 {[%clk 0:01:02.6]} 25... Nd6 {[%clk 0:01:38.5]} 26.
Rc7 {[%clk 0:00:59]} 26... Ke7 {[%clk 0:01:32.8]} 27. Rxd7+ {[%clk 0:00:58]}
27... Kxd7 {[%clk 0:01:33.4]} 28. b3 {[%clk 0:00:49.7]} 28... Ne4+ {[%clk
0:01:32.9]} 29. Ke3 {[%clk 0:00:48.3]} 29... Nc3 {[%clk 0:01:33.5]} 30. Ba5
{[%clk 0:00:37.4]} 30... Nxa2 {[%clk 0:01:26]} 31. Bd2 {[%clk 0:00:36.7]} 31...
Kc6 {[%clk 0:01:22.1]} 32. Kd4 {[%clk 0:00:34.6]} 32... h5 {[%clk 0:01:14.6]}
33. e4 {[%clk 0:00:34.1]} 33... g6 {[%clk 0:01:12.3]} 34. Kd3 {[%clk 0:00:26.3]}
34... Kc5 {[%clk 0:01:09.3]} 35. Be3+ {[%clk 0:00:18.9]} 35... Kb4 {[%clk
0:01:06.1]} 36. Kc2 {[%clk 0:00:19.3]} 36... Ka3 {[%clk 0:00:59.2]} 37. Bc5+
{[%clk 0:00:19.6]} 37... b4 {[%clk 0:00:58.7]} 38. Bd4 {[%clk 0:00:18.9]} 38...
f5 {[%clk 0:00:53.9]} 39. Bb2# {[%clk 0:00:19]} 1-0

[Event "Early-Titled-Tuesday-Blitz-March-19-2024"]
[Site "Chess.com"]
[Date "2024.03.19"]
[Round "4"]
[White "IsaqueGoncalvesSanto"]
[Black "carloseduar100"]
[Result "0-1"]
[WhiteElo "1863"]
[BlackElo "2256"]
[TimeControl "180+1"]
[EndTime "8:39:13 PDT"]
[Termination "carloseduar100 won on time"]

1. d4 {[%clk 0:02:02.5]} 1... d5 {[%clk 0:02:59.8]} 2. c4 {[%clk 0:01:57.3]}
2... e5 {[%clk 0:02:59.4]} 3. dxe5 {[%clk 0:01:44.4]} 3... d4 {[%clk 0:03:00.3]}
4. Nf3 {[%clk 0:01:23.6]} 4... Nc6 {[%clk 0:02:59.9]} 5. Bg5 {[%clk 0:01:22.9]}
5... Bb4+ {[%clk 0:02:54.2]} 6. Nbd2 {[%clk 0:01:22.3]} 6... Qd7 {[%clk
0:02:54]} 7. e3 {[%clk 0:01:21.6]} 7... h6 {[%clk 0:02:51.5]} 8. Bf4 {[%clk
0:01:11.2]} 8... g5 {[%clk 0:02:51]} 9. Bg3 {[%clk 0:01:11.3]} 9... dxe3 {[%clk
0:02:50.7]} 10. fxe3 {[%clk 0:01:11.6]} 10... g4 {[%clk 0:02:51]} 11. Nd4 {[%clk
0:01:07.8]} 11... Nxd4 {[%clk 0:02:50.9]} 12. exd4 {[%clk 0:01:05.8]} 12... Ne7
{[%clk 0:02:39.4]} 13. a3 {[%clk 0:01:02.9]} 13... Qxd4 {[%clk 0:02:22.2]} 14.
axb4 {[%clk 0:01:01.9]} 14... Nf5 {[%clk 0:02:22.1]} 15. Qb3 {[%clk 0:00:53.8]}
15... Be6 {[%clk 0:02:06.1]} 16. Qd3 {[%clk 0:00:48.1]} 16... Qxb2 {[%clk
0:01:53.6]} 17. Rb1 {[%clk 0:00:47.8]} 17... Qa2 {[%clk 0:01:53.9]} 18. Qb3
{[%clk 0:00:41.2]} 18... Qa6 {[%clk 0:01:24.4]} 19. b5 {[%clk 0:00:40.2]} 19...
Qb6 {[%clk 0:01:24.3]} 20. Bf2 {[%clk 0:00:27]} 20... Qa5 {[%clk 0:01:19.8]} 21.
Bd3 {[%clk 0:00:21.3]} 21... O-O-O {[%clk 0:01:15.5]} 22. Qb2 {[%clk 0:00:20.4]}
22... Rxd3 {[%clk 0:01:11.7]} 23. Ra1 {[%clk 0:00:20.3]} 23... Rxd2 {[%clk
0:00:55.4]} 24. Rxa5 {[%clk 0:00:16.1]} 24... Rxb2 {[%clk 0:00:55.3]} 25. Rxa7
{[%clk 0:00:15.4]} 25... Kd7 {[%clk 0:00:48.2]} 26. O-O {[%clk 0:00:09.9]} 26...
Rb8 {[%clk 0:00:40.3]} 27. Rd1+ {[%clk 0:00:09.1]} 27... Ke7 {[%clk 0:00:39.7]}
28. Bc5+ {[%clk 0:00:08]} 28... Ke8 {[%clk 0:00:38.6]} 0-1

[Event "Early-Titled-Tuesday-Blitz-March-19-2024"]
[Site "Chess.com"]
[Date "2024.03.19"]
[Round "4"]
[White "toninhojit"]
[Black "Rodalquilar"]
[Result "0-1"]
[WhiteElo "2494"]
[BlackElo "2789"]
[TimeControl "180+1"]
[EndTime "8:39:14 PDT"]
[Termination "Rodalquilar won by resignation"]

1. d4 {[%clk 0:02:59]} 1... d5 {[%clk 0:03:00.3]} 2. c4 {[%clk 0:02:59.3]} 2...
e6 {[%clk 0:03:00.9]} 3. Nf3 {[%clk 0:02:59.9]} 3... Nf6 {[%clk 0:03:00.5]} 4.
Nc3 {[%clk 0:03:00]} 4... a6 {[%clk 0:03:00.9]} 5. cxd5 {[%clk 0:02:58.3]} 5...
exd5 {[%clk 0:03:01.8]} 6. Bg5 {[%clk 0:02:57.5]} 6... Be6 {[%clk 0:03:02]} 7.
e3 {[%clk 0:02:57.8]} 7... Nbd7 {[%clk 0:03:02.3]} 8. Bd3 {[%clk 0:02:58.4]}
8... Bd6 {[%clk 0:03:02.6]} 9. O-O {[%clk 0:02:59]} 9... c6 {[%clk 0:03:02.1]}
10. e4 {[%clk 0:02:55.5]} 10... dxe4 {[%clk 0:03:01.2]} 11. Nxe4 {[%clk
0:02:56.4]} 11... Be7 {[%clk 0:03:01.8]} 12. Qe2 {[%clk 0:02:54.3]} 12... O-O
{[%clk 0:02:49.1]} 13. Rad1 {[%clk 0:02:50.7]} 13... h6 {[%clk 0:02:48.7]} 14.
Bh4 {[%clk 0:02:49.2]} 14... Re8 {[%clk 0:02:43.4]} 15. Ne5 {[%clk 0:02:46.4]}
15... Nxe4 {[%clk 0:02:19.5]} 16. Qxe4 {[%clk 0:02:21]} 16... Bxh4 {[%clk
0:02:10.7]} 17. Qh7+ {[%clk 0:02:10.2]} 17... Kf8 {[%clk 0:02:11.1]} 18. Qh8+
{[%clk 0:02:10.8]} 18... Ke7 {[%clk 0:02:11.4]} 19. Qxg7 {[%clk 0:02:11.5]}
19... Bf6 {[%clk 0:01:33.8]} 20. Qxh6 {[%clk 0:01:59.7]} 20... Nxe5 {[%clk
0:01:11.3]} 21. dxe5 {[%clk 0:01:58.7]} 21... Bxe5 {[%clk 0:01:12.2]} 22. Rfe1
{[%clk 0:01:56.9]} 22... Qc7 {[%clk 0:00:51.9]} 23. Qh4+ {[%clk 0:01:47.9]}
23... Kf8 {[%clk 0:00:39.3]} 24. Qb4+ {[%clk 0:01:23]} 24... c5 {[%clk
0:00:37.7]} 25. Qe4 {[%clk 0:01:17.6]} 25... Bxa2 {[%clk 0:00:23]} 26. Qh4
{[%clk 0:01:01.6]} 26... Rad8 {[%clk 0:00:18.9]} 27. Re3 {[%clk 0:00:49.5]}
27... Bxh2+ {[%clk 0:00:12.9]} 28. Qxh2 {[%clk 0:00:43.3]} 28... Qxh2+ {[%clk
0:00:13.8]} 29. Kxh2 {[%clk 0:00:43.8]} 29... Rxe3 {[%clk 0:00:14.2]} 30. fxe3
{[%clk 0:00:44.5]} 30... Bb3 {[%clk 0:00:14.8]} 31. Bc2 {[%clk 0:00:28.8]} 0-1

[Event "Early-Titled-Tuesday-Blitz-March-19-2024"]
[Site "Chess.com"]
[Date "2024.03.19"]
[Round "4"]
[White "Road2GM3000"]
[Black "LeoWin2012"]
[Result "0-1"]
[WhiteElo "2398"]
[BlackElo "2207"]
[TimeControl "180+1"]
[EndTime "8:39:17 PDT"]
[Termination "LeoWin2012 won by resignation"]

1. d4 {[%clk 0:02:48.9]} 1... Nf6 {[%clk 0:02:58.7]} 2. c4 {[%clk 0:02:49.6]}
2... e6 {[%clk 0:02:56.7]} 3. Nc3 {[%clk 0:02:50.3]} 3... Bb4 {[%clk 0:02:56.9]}
4. Nf3 {[%clk 0:02:51]} 4... d5 {[%clk 0:02:56.5]} 5. Bg5 {[%clk 0:02:51.6]}
5... dxc4 {[%clk 0:02:51.8]} 6. e3 {[%clk 0:02:51.7]} 6... Nbd7 {[%clk
0:02:48.7]} 7. Bxc4 {[%clk 0:02:51.4]} 7... h6 {[%clk 0:02:47.2]} 8. Bh4 {[%clk
0:02:51.4]} 8... c5 {[%clk 0:02:46.6]} 9. O-O {[%clk 0:02:51.7]} 9... cxd4
{[%clk 0:02:42.5]} 10. exd4 {[%clk 0:02:50.5]} 10... a6 {[%clk 0:02:38.8]} 11.
Ne5 {[%clk 0:02:48.8]} 11... Nxe5 {[%clk 0:02:33.7]} 12. dxe5 {[%clk 0:02:49.2]}
12... Qxd1 {[%clk 0:02:34.3]} 13. Rfxd1 {[%clk 0:02:47.7]} 13... Nd7 {[%clk
0:02:35.2]} 14. Ne4 {[%clk 0:02:38.4]} 14... b5 {[%clk 0:02:15.7]} 15. Be2
{[%clk 0:02:31.8]} 15... O-O {[%clk 0:02:09.2]} 16. a3 {[%clk 0:02:31.6]} 16...
Ba5 {[%clk 0:02:01.2]} 17. Be7 {[%clk 0:02:32.1]} 17... Re8 {[%clk 0:01:59.7]}
18. Bd6 {[%clk 0:02:30.5]} 18... Bb7 {[%clk 0:01:59]} 19. Bf3 {[%clk 0:02:30.2]}
19... Nb6 {[%clk 0:01:53.8]} 20. Nf6+ {[%clk 0:02:23.3]} 20... gxf6 {[%clk
0:01:52.2]} 21. Bxb7 {[%clk 0:02:24]} 21... Ra7 {[%clk 0:01:52.1]} 22. Bf3
{[%clk 0:02:08.7]} 22... Nc4 {[%clk 0:01:42.4]} 23. Bc5 {[%clk 0:02:07.7]} 23...
Rc7 {[%clk 0:01:39]} 24. b4 {[%clk 0:02:08.3]} 24... Nxe5 {[%clk 0:01:27.3]} 25.
Bd6 {[%clk 0:02:06.9]} 25... Nxf3+ {[%clk 0:01:27.5]} 26. gxf3 {[%clk
0:02:07.2]} 26... Rd7 {[%clk 0:01:27.7]} 27. Bf4 {[%clk 0:02:01.4]} 27... Rxd1+
{[%clk 0:01:24.9]} 28. Rxd1 {[%clk 0:02:02.3]} 28... Rd8 {[%clk 0:01:16.9]} 29.
Rc1 {[%clk 0:01:58.1]} 29... Bb6 {[%clk 0:01:15.5]} 30. Rc6 {[%clk 0:01:57.4]}
30... Rd1+ {[%clk 0:01:09.8]} 31. Kg2 {[%clk 0:01:57.9]} 31... Bd4 {[%clk
0:01:08.2]} 32. Bxh6 {[%clk 0:01:55.3]} 32... Kh7 {[%clk 0:00:57.3]} 33. Be3
{[%clk 0:01:53.7]} 33... Bxe3 {[%clk 0:00:50.6]} 34. fxe3 {[%clk 0:01:54.6]}
34... Rd3 {[%clk 0:00:48.9]} 35. Rxa6 {[%clk 0:01:54.2]} 35... Rxe3 {[%clk
0:00:49.1]} 36. Ra5 {[%clk 0:01:51.4]} 36... Kg6 {[%clk 0:00:48.4]} 37. Kg3
{[%clk 0:01:49]} 37... e5 {[%clk 0:00:45.8]} 38. h4 {[%clk 0:01:46.2]} 38... e4
{[%clk 0:00:44.1]} 39. Rxb5 {[%clk 0:01:43.7]} 39... Rxf3+ {[%clk 0:00:41.8]}
40. Kg2 {[%clk 0:01:40.1]} 40... Rxa3 {[%clk 0:00:41.3]} 41. Rb8 {[%clk
0:01:34.1]} 41... f5 {[%clk 0:00:33.6]} 42. b5 {[%clk 0:01:31.9]} 42... f4
{[%clk 0:00:32.8]} 43. b6 {[%clk 0:01:30.4]} 43... Ra2+ {[%clk 0:00:32.6]} 44.
Kg1 {[%clk 0:01:29.7]} 44... Ra1+ {[%clk 0:00:26.4]} 45. Kg2 {[%clk 0:01:29.6]}
45... f3+ {[%clk 0:00:22.2]} 46. Kf2 {[%clk 0:01:19.7]} 46... Ra2+ {[%clk
0:00:21.6]} 47. Kg3 {[%clk 0:01:19]} 47... Rg2+ {[%clk 0:00:20.7]} 48. Kh3
{[%clk 0:01:18.9]} 48... Rb2 {[%clk 0:00:18.1]} 49. b7 {[%clk 0:01:19.3]} 49...
Kg7 {[%clk 0:00:18.1]} 50. Kg3 {[%clk 0:01:18.9]} 50... f2 {[%clk 0:00:15.6]}
51. Kg2 {[%clk 0:01:18.5]} 51... e3 {[%clk 0:00:15.5]} 52. h5 {[%clk 0:01:19.1]}
52... Rb1 {[%clk 0:00:15]} 53. h6+ {[%clk 0:01:17.7]} 53... Kh7 {[%clk
0:00:15.4]} 54. Rf8 {[%clk 0:01:14.8]} 54... f1=Q+ {[%clk 0:00:14.8]} 55. Kg3
{[%clk 0:01:15.5]} 55... Qf2+ {[%clk 0:00:14.8]} 0-1

[Event "Early-Titled-Tuesday-Blitz-March-19-2024"]
[Site "Chess.com"]
[Date "2024.03.19"]
[Round "4"]
[White "ploxoi"]
[Black "angelgab3"]
[Result "1/2-1/2"]
[WhiteElo "2436"]
[BlackElo "2675"]
[TimeControl "180+1"]
[EndTime "8:39:20 PDT"]
[Termination "Game drawn by agreement"]

1. d4 {[%clk 0:03:00.9]} 1... Nf6 {[%clk 0:02:56.7]} 2. c4 {[%clk 0:03:00.4]}
2... e6 {[%clk 0:02:57.1]} 3. g3 {[%clk 0:02:59.9]} 3... d5 {[%clk 0:02:55.5]}
4. Nf3 {[%clk 0:02:57.3]} 4... dxc4 {[%clk 0:02:55.4]} 5. Bg2 {[%clk 0:02:57.2]}
5... a6 {[%clk 0:02:55]} 6. O-O {[%clk 0:02:55.5]} 6... Nc6 {[%clk 0:02:52.2]}
7. Bg5 {[%clk 0:02:44.5]} 7... Rb8 {[%clk 0:02:48.2]} 8. e3 {[%clk 0:02:42]}
8... h6 {[%clk 0:02:14.6]} 9. Bxf6 {[%clk 0:02:40.1]} 9... Qxf6 {[%clk
0:02:14.8]} 10. Qc1 {[%clk 0:02:40]} 10... b5 {[%clk 0:02:07.6]} 11. b3 {[%clk
0:02:39.3]} 11... Na5 {[%clk 0:02:08.1]} 12. Ne5 {[%clk 0:02:39.3]} 12... Bd6
{[%clk 0:02:05.5]} 13. f4 {[%clk 0:02:20.2]} 13... O-O {[%clk 0:02:03]} 14. bxc4
{[%clk 0:02:19.3]} 14... Nxc4 {[%clk 0:02:01.8]} 15. Nxc4 {[%clk 0:02:18.6]}
15... bxc4 {[%clk 0:02:01.8]} 16. Qxc4 {[%clk 0:02:19.2]} 16... c5 {[%clk
0:01:59.4]} 17. Nc3 {[%clk 0:02:10]} 17... cxd4 {[%clk 0:01:57.6]} 18. Ne4
{[%clk 0:02:10.2]} 18... Qe7 {[%clk 0:01:55]} 19. Nxd6 {[%clk 0:02:10.1]} 19...
Qxd6 {[%clk 0:01:55.9]} 20. Qxd4 {[%clk 0:02:10.2]} 20... Qxd4 {[%clk
0:01:52.4]} 21. exd4 {[%clk 0:02:11.1]} 21... Rd8 {[%clk 0:01:52.9]} 22. Rfd1
{[%clk 0:02:08.9]} 22... Rb2 {[%clk 0:01:53.4]} 23. a3 {[%clk 0:01:59.6]} 23...
a5 {[%clk 0:01:45.9]} 24. Rac1 {[%clk 0:01:53]} 24... Ba6 {[%clk 0:01:41.3]} 25.
d5 {[%clk 0:01:50.2]} 25... Bb7 {[%clk 0:01:39.2]} 26. Rc5 {[%clk 0:01:42.3]}
26... a4 {[%clk 0:01:23.3]} 27. Ra5 {[%clk 0:01:20]} 27... Ra2 {[%clk
0:01:07.9]} 28. Rxa4 {[%clk 0:01:16.7]} 28... exd5 {[%clk 0:01:07.9]} 29. Rb4
{[%clk 0:01:12.9]} 29... Ba8 {[%clk 0:01:03.7]} 30. Rbd4 {[%clk 0:01:06.8]}
30... Rc8 {[%clk 0:01:00.7]} 31. R1d2 {[%clk 0:01:00.6]} 31... Rc1+ {[%clk
0:00:35.3]} 32. Kf2 {[%clk 0:00:59.2]} 32... Rxa3 {[%clk 0:00:21.2]} 33. Bxd5
{[%clk 0:00:55.8]} 33... Bxd5 {[%clk 0:00:22.1]} 34. Rxd5 {[%clk 0:00:55.8]}
34... Rh1 {[%clk 0:00:22.4]} 35. Kg2 {[%clk 0:00:51.6]} 35... Rc1 {[%clk
0:00:22.9]} 36. Rd7 {[%clk 0:00:45.1]} 36... Rac3 {[%clk 0:00:21.2]} 1/2-1/2

[Event "Early-Titled-Tuesday-Blitz-March-19-2024"]
[Site "Chess.com"]
[Date "2024.03.19"]
[Round "4"]
[White "Nitzan_Steinberg"]
[Black "wonderfultime"]
[Result "1/2-1/2"]
[WhiteElo "2879"]
[BlackElo "3077"]
[TimeControl "180+1"]
[EndTime "8:39:21 PDT"]
[Termination "Game drawn by repetition"]

1. e4 {[%clk 0:03:00.9]} 1... e5 {[%clk 0:02:58.5]} 2. Nf3 {[%clk 0:03:01.2]}
2... Nc6 {[%clk 0:02:59.1]} 3. Bb5 {[%clk 0:03:01.8]} 3... a6 {[%clk 0:02:59.5]}
4. Ba4 {[%clk 0:03:02.3]} 4... Bc5 {[%clk 0:03:00.2]} 5. c3 {[%clk 0:03:02.2]}
5... Nge7 {[%clk 0:03:00.9]} 6. O-O {[%clk 0:03:00]} 6... Ng6 {[%clk 0:03:01.1]}
7. d4 {[%clk 0:02:59.9]} 7... Ba7 {[%clk 0:03:01.8]} 8. Be3 {[%clk 0:02:54.3]}
8... O-O {[%clk 0:03:00.9]} 9. Nbd2 {[%clk 0:02:51.2]} 9... d6 {[%clk
0:03:01.3]} 10. Re1 {[%clk 0:02:44.2]} 10... exd4 {[%clk 0:03:01.7]} 11. cxd4
{[%clk 0:02:43.8]} 11... Nce7 {[%clk 0:03:01.5]} 12. Bb3 {[%clk 0:02:30.9]}
12... c6 {[%clk 0:02:59]} 13. h3 {[%clk 0:02:22]} 13... d5 {[%clk 0:02:58.1]}
14. e5 {[%clk 0:02:21.2]} 14... Nf5 {[%clk 0:02:52.5]} 15. Nf1 {[%clk
0:02:21.4]} 15... f6 {[%clk 0:02:47]} 16. exf6 {[%clk 0:02:12.4]} 16... Nxe3
{[%clk 0:02:45.8]} 17. Rxe3 {[%clk 0:01:53.1]} 17... Qxf6 {[%clk 0:02:45.7]} 18.
Qd2 {[%clk 0:01:51.8]} 18... Bb8 {[%clk 0:01:58.3]} 19. Qc3 {[%clk 0:01:47.4]}
19... Bf4 {[%clk 0:01:52.6]} 20. Ree1 {[%clk 0:01:45.2]} 20... Bf5 {[%clk
0:01:45.4]} 21. Bc2 {[%clk 0:01:39.9]} 21... Bd7 {[%clk 0:01:38.1]} 22. Bxg6
{[%clk 0:01:35.9]} 22... hxg6 {[%clk 0:01:34.1]} 23. Re2 {[%clk 0:01:20.2]}
23... Rae8 {[%clk 0:01:27.2]} 24. Ne5 {[%clk 0:01:16.1]} 24... Bc8 {[%clk
0:01:00]} 25. Rae1 {[%clk 0:01:15.8]} 25... Re6 {[%clk 0:00:53.4]} 26. Ng4
{[%clk 0:01:11.6]} 26... Qf7 {[%clk 0:00:47.8]} 27. Ne5 {[%clk 0:01:07.9]} 27...
Qc7 {[%clk 0:00:30]} 28. b4 {[%clk 0:01:01.9]} 28... Qd6 {[%clk 0:00:29.5]} 29.
a3 {[%clk 0:01:01.4]} 29... Bg5 {[%clk 0:00:24.4]} 30. Nd2 {[%clk 0:01:00.3]}
30... Bd8 {[%clk 0:00:24.4]} 31. Ndf3 {[%clk 0:00:59.4]} 31... Ref6 {[%clk
0:00:22.2]} 32. Re3 {[%clk 0:00:53.9]} 32... Bc7 {[%clk 0:00:21.2]} 33. Qc5
{[%clk 0:00:51.7]} 33... Qd8 {[%clk 0:00:19.4]} 34. Qc3 {[%clk 0:00:49.8]} 34...
Bd6 {[%clk 0:00:20.1]} 35. Qd2 {[%clk 0:00:40.7]} 35... Bc7 {[%clk 0:00:20.1]}
36. Qc3 {[%clk 0:00:41.1]} 36... Bd6 {[%clk 0:00:20.2]} 37. Qd2 {[%clk
0:00:41.7]} 37... Bc7 {[%clk 0:00:17.2]} 38. Qc3 {[%clk 0:00:42.2]} 1/2-1/2

[Event "Early-Titled-Tuesday-Blitz-March-19-2024"]
[Site "Chess.com"]
[Date "2024.03.19"]
[Round "4"]
[White "AlexandraSamaganova"]
[Black "guillembaches"]
[Result "0-1"]
[WhiteElo "2312"]
[BlackElo "2552"]
[TimeControl "180+1"]
[EndTime "8:39:21 PDT"]
[Termination "guillembaches won by checkmate"]

1. c4 {[%clk 0:03:00.9]} 1... e6 {[%clk 0:02:59.7]} 2. Nc3 {[%clk 0:03:00.2]}
2... d5 {[%clk 0:03:00.3]} 3. e3 {[%clk 0:02:59.9]} 3... a6 {[%clk 0:03:00.3]}
4. Nf3 {[%clk 0:02:59.1]} 4... Nf6 {[%clk 0:03:00.9]} 5. d4 {[%clk 0:02:58.7]}
5... Be7 {[%clk 0:02:56.3]} 6. Bd3 {[%clk 0:02:57.8]} 6... dxc4 {[%clk
0:02:56.1]} 7. Bxc4 {[%clk 0:02:58.1]} 7... b5 {[%clk 0:02:56.7]} 8. Bd3 {[%clk
0:02:58]} 8... Bb7 {[%clk 0:02:57.3]} 9. O-O {[%clk 0:02:56]} 9... Nbd7 {[%clk
0:02:57.5]} 10. a3 {[%clk 0:02:54.3]} 10... c5 {[%clk 0:02:57.6]} 11. dxc5
{[%clk 0:02:50.2]} 11... Nxc5 {[%clk 0:02:57.5]} 12. Be2 {[%clk 0:02:49.2]}
12... Qb6 {[%clk 0:02:55.6]} 13. b4 {[%clk 0:02:47.5]} 13... Ncd7 {[%clk
0:02:52.9]} 14. Qb3 {[%clk 0:02:42.4]} 14... O-O {[%clk 0:02:50.8]} 15. Rd1
{[%clk 0:02:40.8]} 15... Rac8 {[%clk 0:02:49.8]} 16. Bb2 {[%clk 0:02:40.7]}
16... Qa7 {[%clk 0:02:40.8]} 17. Rac1 {[%clk 0:02:37.7]} 17... Nb6 {[%clk
0:02:40.8]} 18. Nd4 {[%clk 0:02:35.7]} 18... Nc4 {[%clk 0:02:29.8]} 19. Bf3
{[%clk 0:02:16.1]} 19... Bxf3 {[%clk 0:02:23.3]} 20. Nxf3 {[%clk 0:02:16.1]}
20... Rc7 {[%clk 0:02:15.2]} 21. Ne2 {[%clk 0:02:11.3]} 21... Rfc8 {[%clk
0:02:12.6]} 22. Bd4 {[%clk 0:02:11.3]} 22... Qb7 {[%clk 0:02:10.7]} 23. h3
{[%clk 0:02:11.2]} 23... h6 {[%clk 0:02:04.7]} 24. Nf4 {[%clk 0:01:58.9]} 24...
Ne4 {[%clk 0:01:59.9]} 25. Nd3 {[%clk 0:01:55]} 25... Bf8 {[%clk 0:01:55.2]} 26.
Nfe5 {[%clk 0:01:40.4]} 26... Rd8 {[%clk 0:01:28]} 27. Qa2 {[%clk 0:01:15.8]}
27... Rdc8 {[%clk 0:01:22.8]} 28. Qb3 {[%clk 0:01:15.2]} 28... Kh7 {[%clk
0:01:19]} 29. Rc3 {[%clk 0:01:00.7]} 29... Nxc3 {[%clk 0:01:18]} 30. Bxc3 {[%clk
0:00:56.4]} 30... f6 {[%clk 0:01:12]} 31. Nf3 {[%clk 0:00:53.1]} 31... e5 {[%clk
0:01:09.6]} 32. Nh4 {[%clk 0:00:36.7]} 32... Qe4 {[%clk 0:01:00.4]} 33. g3
{[%clk 0:00:30.9]} 33... Nxe3 {[%clk 0:00:58.8]} 34. Rc1 {[%clk 0:00:11.7]}
34... Qxd3 {[%clk 0:00:49.6]} 35. fxe3 {[%clk 0:00:11.7]} 35... Rxc3 {[%clk
0:00:48.9]} 36. Rxc3 {[%clk 0:00:10.8]} 36... Rxc3 {[%clk 0:00:48.2]} 37. Qf7
{[%clk 0:00:11.7]} 37... Qxe3+ {[%clk 0:00:47.5]} 38. Kh2 {[%clk 0:00:11.7]}
38... Qxg3+ {[%clk 0:00:43.4]} 39. Kh1 {[%clk 0:00:11.8]} 39... Rc1# {[%clk
0:00:42.8]} 0-1